Cogmind - Beta 15 @@@ ROGUE MODE // 2025.10.04 @ 20:55:28 Player: DietSnapple Result: Destroyed by CP-NK5(R) with Subdweller Laser Performance ------------- Evolutions (0) 0 Regions Visited (3) 600 Robots Destroyed (16) 80 Value Destroyed (293) 293 Prototype IDs (0) 0 Alien Tech Used (0) 0 Bonus (14) 14 TOTAL SCORE: 987 Bonus ------- Follower Combat Kills 14 Cogmind --------- Core Integrity 0/250 Matter 295/300 Energy 100/100 System Corruption 0% Temperature Cool (6) Movement Core (50) Location -10/Subcaves Parts ------- > --- POWER (1) -------- (None) > --- PROPULSION (2) --- (None) > --- UTILITY (2) ------ (None) > --- WEAPON (2) ------- (None) > --- INVENTORY (5) ---- Ion Engine Light Angular Momentum Engine Structural Scanner Sensor Array ECM Suite Peak State ------------ > --- POWER ------------ Ion Engine > --- PROPULSION ------- Aluminum Leg Carbon-fiber Leg > --- UTILITY ---------- Small Storage Unit Sensor Array > --- WEAPON ----------- Riot Gun Beamcaster > --- INVENTORY -------- Ion Engine Light Angular Momentum Engine Improved Heat Sink Structural Scanner Sensor Array ECM Suite [Rating: 16] Favorites ----------- Power Ion Engine Engine Ion Engine Propulsion Aluminum Leg Treads Light Treads Leg Aluminum Leg Utility Small Storage Unit Device Seismic Detector Storage Small Storage Unit Weapon Small Laser Energy Gun Small Laser Build | -11 -10 -10 -10 ------- Run | Yrd Mat Min Sub Slots Evolved . | . . . . Power . | . . . . Propulsion . | . . . . Utility . | . . . . Weapon . | . . . . Parts Attached 16 | 9 2 3 2 Power 2 | 1 1 . . Engine 2 | 1 1 . . Core . | . . . . Reactor . | . . . . Propulsion 7 | 4 1 2 . Treads 2 | 2 . . . Leg 5 | 2 1 2 . Wheel . | . . . . Hover . | . . . . Flight . | . . . . Utility 3 | 2 . 1 . Device 2 | 1 . 1 . Storage 1 | 1 . . . Processor . | . . . . Hackware . | . . . . Protection . | . . . . Artifact . | . . . . Weapon 4 | 2 . . 2 Energy Gun 4 | 2 . . 2 Energy Cannon . | . . . . Ballistic Gun . | . . . . Ballistic Cannon . | . . . . Launcher . | . . . . Special Weapon . | . . . . Impact Weapon . | . . . . Slashing Weapon . | . . . . Piercing Weapon . | . . . . Special Melee Weapon . | . . . . Unidentified Prototypes . | . . . . Parts Lost 5 | . 1 3 1 Power . | . . . . Propulsion 3 | . 1 1 1 Utility . | . . . . Weapon 2 | . . 2 . Highest Loss Streak 3 | . 1 3 1 To Critical Strikes . | . . . . Average Backups 5 | 1 4 7 6 Power . | . . 1 2 Propulsion . | 1 1 . . Utility 3 | . 2 5 4 Weapon . | . . . . Tool/Special . | . . . . Unused Backups 9 | . 1 2 6 Power 2 | . . . 2 Propulsion . | . . . . Utility 7 | . 1 2 4 Weapon . | . . . . Tool/Special . | . . . . Average Slot Usage (%) 91 | . 99 90 76 Engine 14 | . 14 14 14 Leg 27 | . 27 28 27 Device 14 | . 14 14 14 Storage 14 | . 14 14 14 Energy Gun 19 | . 28 19 5 Peak Build Rating 16 | 7 7 10 16 Average Rating 7 | 4 6 7 10 On Entrance 5 | . 7 7 8 Naked Turns 1 | . . . 1 Heaviest Build 19 | 13 13 13 19 Greatest Support 40 | 40 20 25 25 Greatest Overweight (x) 1 | . 1 . 1 Average Overweight (x) . | . . . . Largest Inventory Capacity 8 | 8 8 8 8 Average Capacity 7 | 7 8 8 7 Most Carried 8 | 2 8 8 6 Average Carried 5 | 1 5 7 5 Final Capacity 8 | 8 8 8 5 Final Carried 8 | 2 8 6 5 Class Distribution -------------------- 92% | Mutant 7% | Scavenger-Mutant Dominant Class ---------------- Mutant | -10/Materials Mutant | -10/Mines Mutant | -10/Subcaves Resources | -11 -10 -10 -10 ----------- Run | Yrd Mat Min Sub Matter Collected 342 | 290 20 22 10 Remotely . | . . . . Salvage Created 449 | 111 327 11 . Parts 33 | 7 25 1 . Haulers Intercepted . | . . . . Recyclers Shooed 1 | . . 1 . Parts Field Recycled . | . . . . Retrieved Matter . | . . . . Parts Self-Destructed 6 | . . . 6 Prevented . | . . . . Kills | -11 -10 -10 -10 ------- Run | Yrd Mat Min Sub Combat Hostiles Destroyed 11 | . 10 1 . Guns 11 | . 10 1 . Classes Destroyed 5 | 2 3 . . Tunneler 1 | 1 . . . Recycler 1 | 1 . . . Watcher 3 | . 3 . . Swarmer 7 | . 6 1 . Grunt 4 | . 4 . . Best Kill Streak 3 | 1 3 1 . Combat Bots Only 2 | . 2 1 . Max Kills in Single Turn 1 | 1 1 1 . Gunslinging . | . . . . Exploded . | . . . . Melee . | . . . . Uniques/NPCs Destroyed . | . . . . Combat | -11 -10 -10 -10 -------- Run | Yrd Mat Min Sub Hostile Shots Fired 113 | . 42 54 17 Missed 41 | . 11 22 8 Hits 72 | . 31 32 9 Projectile 72 | . 31 32 9 AOE 1 | . . . 1 Critical Strikes 1 | . 1 . . Damage Taken 968 | . 336 397 235 Core 266 | . 72 88 106 Absorbed by Shields . | . . . . Core Remaining (%) 100 | 100 . . . Volleys Fired 35 | 6 27 2 . Largest 2 | 2 2 2 . Hottest 80 | 80 80 80 . Shots Fired 70 | 12 54 4 . Gun 70 | 12 54 4 . Cannon . | . . . . Launcher . | . . . . Special . | . . . . Kinetic . | . . . . Thermal 70 | 12 54 4 . Explosive . | . . . . Electromagnetic . | . . . . Robot Hit Streak 7 | 2 7 1 . Robot Miss Streak 3 | 3 2 2 . Penetration Max . | . . . . Secondary Targets 1 | . 1 . . Max Gunslinging Chain 1 | . 1 . . Shots Hit Robots 40 | 5 34 1 . Core Hits 24 | 3 20 1 . Critical Kills . | . . . . Critical Parts Destroyed . | . . . . Critical Strikes . | . . . . Melee Attacks . | . . . . Impact . | . . . . Slashing . | . . . . Piercing . | . . . . Sneak Attacks . | . . . . Combat Hostiles . | . . . . Follow-up Attacks . | . . . . Damage Inflicted 469 | 56 386 27 . Guns 454 | 56 386 12 . Cannons . | . . . . Explosions . | . . . . Melee . | . . . . Ramming 15 | . . 15 . Kinetic . | . . . . Thermal 454 | 56 386 12 . Explosive . | . . . . Electromagnetic . | . . . . Impact . | . . . . Slashing . | . . . . Piercing . | . . . . Highest Corruption . | . . . . Average Corruption . | . . . . Corruption Purged . | . . . . Corruption Blocked . | . . . . Overload Shots . | . . . . Overflow Damage . | . . . . Projectiles . | . . . . Explosions . | . . . . Melee . | . . . . Knockbacks . | . . . . Impact . | . . . . Kinetic . | . . . . Secondary . | . . . . Self-Inflicted Damage . | . . . . Shots . | . . . . Rammed . | . . . . Targets Rammed 3 | . . 3 . Kicked 3 | . . 3 . Crushed . | . . . . Highest Temperature 277 | 9 277 36 . Average Temperature 94 | 5 114 20 . Received Heat Transfer 384 | . 144 210 30 Siege Activations . | . . . . Martial Activations . | . . . . Shielding Activations . | . . . . Robots Disrupted . | . . . . Combat Hostiles . | . . . . Robots Corrupted . | . . . . Combat Hostiles . | . . . . Parts Fried . | . . . . Impact Corruptions . | . . . . Robots Melted . | . . . . Combat Hostiles . | . . . . Parts Melted 2 | . 1 1 . Heat Transferred 1025 | 125 875 25 . Parts Sabotaged . | . . . . Parts Stolen . | . . . . Parts Stripped . | . . . . Power Chain Reactions . | . . . . Alert | -11 -10 -10 -10 ------- Run | Yrd Mat Min Sub Maximum Alert Level . | . . . . Low Security (%) 100 | 100 100 100 . Level 1 . | . . . . Level 2 . | . . . . Level 3 . | . . . . Level 4 . | . . . . Level 5 . | . . . . High Security . | . . . . Max Security . | . . . . Peak Influence 90 | 5 90 75 . Initial 2 | . . 2 . Average 28 | . 45 18 . Influence Increases 479 | 10 291 178 . Destroy 0b10 Robot/C 260 | . 200 60 . Destroy 0b10 Robot/NC 25 | 10 15 . . Destroy Leader 56 | . 46 10 . Allied During Kill 3 | . . 3 . Lose Combat Pursuer 135 | . 30 105 . Influence Decreases 479 | 10 284 126 59 Entered New Map 36 | . . 5 31 Time Decay 390 | 10 274 78 28 Lost Part 33 | . 10 23 . Lost Ally 20 | . . 20 . Squads Dispatched 2 | . 1 1 . Investigation 1 | . 1 . . Extermination . | . . . . Reinforcement . | . . . . Assault 1 | . . 1 . Garrison . | . . . . Intercept . | . . . . Searches Triggered . | . . . . Construction Impeded . | . . . . Haulers Reinforced . | . . . . Active Scanning Responses . | . . . . Cargo Convoy Interrupts . | . . . . Stealth | -11 -10 -10 -10 --------- Run | Yrd Mat Min Sub Distress Signals 2 | . 2 . . Communications Jammed . | . . . . Distress Signals . | . . . . Times Spotted 36 | . 15 11 10 Peak Tracking Total 8 | . 3 4 8 Tactical Retreats 4 | . 2 2 . Traps | -11 -10 -10 -10 ------- Run | Yrd Mat Min Sub Traps Triggered 1 | . 1 . . Indirectly . | . . . . Trap Hack Attempts . | . . . . Triggered . | . . . . Disarmed . | . . . . Reprogrammed . | . . . . Reused . | . . . . Traps Extracted . | . . . . Installed . | . . . . Triggered . | . . . . Machines | -11 -10 -10 -10 ---------- Run | Yrd Mat Min Sub Machines Disabled . | . . . . Max in Single Turn . | . . . . Machines Repaired . | . . . . Machines Dismantled . | . . . . Machines Sabotaged . | . . . . Overloaded Fab Kills . | . . . . Hacking | -11 -10 -10 -10 --------- Run | Yrd Mat Min Sub Machines Accessed 3 | . 3 . . Terminals 3 | . 3 . . Fabricators . | . . . . Repair Stations . | . . . . Recycling Units . | . . . . Scanalyzers . | . . . . Garrison Access . | . . . . Total Hacks 3 | . 3 . . Successful 2 | . 2 . . Failed 1 | . 1 . . Catastrophic . | . . . . Database Lockouts . | . . . . Manual 1 | . 1 . . Terminals 3 | . 3 . . Fabricators . | . . . . Repair Stations . | . . . . Recycling Units . | . . . . Scanalyzers . | . . . . Garrison Access . | . . . . Terminal Hacks 2 | . 2 . . Hauler Manifests 1 | . 1 . . Zone Layout 1 | . 1 . . Fabricator Hacks . | . . . . Repair Station Hacks . | . . . . Recycling Unit Hacks . | . . . . Scanalyzer . | . . . . Garrison Access Hacks . | . . . . Unauthorized Hacks . | . . . . Terminals . | . . . . Fabricators . | . . . . Repair Stations . | . . . . Recycling Units . | . . . . Scanalyzers . | . . . . Garrison Access . | . . . . Data Cores Recovered . | . . . . Used . | . . . . Hacking Detections . | . . . . Full Trace Events . | . . . . Feedback Events . | . . . . Feedback Blocked . | . . . . Robot Schematics Acquired . | . . . . Robots Built . | . . . . Authchips . | . . . . Time . | . . . . Total Robot Build Rating . | . . . . Part Schematics Acquired . | . . . . Parts Built . | . . . . Authchips . | . . . . Time . | . . . . Total Part Build Rating . | . . . . Parts Repaired . | . . . . Time . | . . . . Parts Recycled . | . . . . Recycled Matter . | . . . . Retrieved Matter . | . . . . Retrieved Components . | . . . . Parts Scanalyzed . | . . . . Part Schematics Acquired . | . . . . Parts Damaged . | . . . . Bothacking | -11 -10 -10 -10 ------------ Run | Yrd Mat Min Sub Used RIF Installer . | . . . . Robots Hacked . | . . . . Non-combat . | . . . . Combat . | . . . . Robot Hacks Applied . | . . . . Relay Couplers Released . | . . . . Fabnet Peak Effective % . | . . . . Robots Rewired . | . . . . Allies Hacked . | . . . . Hacks Repelled . | . . . . Allies | -11 -10 -10 -10 -------- Run | Yrd Mat Min Sub Total Allies 1 | . . 1 . Largest Group 1 | . . 1 . Highest-Rated Group 31 | . . 31 . Highest-Rated Ally 31 | . . 31 . Total Orders . | . . . . Ally Attacks 7 | . . 7 . Total Damage 83 | . . 83 . Kills 2 | . . 2 . Allies Corrupted . | . . . . Allies Melted . | . . . . Intel | -11 -10 -10 -10 ------- Run | Yrd Mat Min Sub Active Infowar (turns) 1526 | 82 646 439 359 Sensors 537 | . . 178 359 Seismic 989 | 82 646 261 . Robot Analysis Total . | . . . . Derelict Logs Recovered 2 | . . 1 1 Drone Launches . | . . . . Drone Recoveries . | . . . . Exploration | -11 -10 -10 -10 ------------- Run | Yrd Mat Min Sub Turns Passed 1688 | 243 646 439 360 Spaces Moved 1231 | 163 437 346 285 Core 11 | 10 . . 1 Treads 44 | 44 . . . Legs 1176 | 109 437 346 284 Wheels . | . . . . Hover . | . . . . Flight . | . . . . Fastest Speed 50 | 50 120 120 50 Average Speed 121 | 126 120 120 121 Slowest Speed 190 | 160 190 120 190 Overloaded Moves . | . . . . Propulsion Burnouts . | . . . . Robots Hopped . | . . . . Potential Cave-ins . | . . . . Cave-ins Triggered . | . . . . Exploration Rate (%) 30 | 5 48 50 17 Regions Visited 3 Branch Regions 2 Pre-discovered Areas . | . . . . Known Exits Taken . | . . . . Unknown Exits Taken 3 | 1 1 1 . Scrap Searched 1 | . . 1 . Spaces Dug . | . . . . Terrain Destroyed . | . . . . Melee . | . . . . Projectile . | . . . . AOE . | . . . . Terrain Rammed . | . . . . Walls Destroyed . | . . . . Machines Disabled . | . . . . Actions | -11 -10 -10 -10 --------- Run | Yrd Mat Min Sub Total 1354 | 183 505 368 298 Wait 51 | 4 27 9 11 Move 1228 | 162 436 345 285 Hop . | . . . . Pick Up 13 | 2 9 2 . Fast Attach 10 | 7 1 . 2 Attach 1 | . . 1 . Detach . | . . . . Swap 5 | 2 1 2 . Drop 8 | . 4 4 . Fire 35 | 6 27 2 . Melee . | . . . . Ram . | . . . . Kick 3 | . . 3 . Crush . | . . . . Escape Stasis . | . . . . Rewire . | . . . . Trap . | . . . . Miscellaneous . | . . . . Route ------- -11/Scrapyard -10/Materials (discovered 3 exits: [*Mat] / [*Min x2]) -10/Mines -10/Subcaves (discovered 1 exit: Mat) History --------- Turn | Location | Event 25 | -11/Scrapyard | Discovered new exit (range 14) 244 | -11/Scrapyard | Entered Materials 302 | -10/Materials | Build established: Mutant 524 | -10/Materials | Discovered new exit (range 4) 578 | -10/Materials | Discovered new exit (range 14) 803 | -10/Materials | Discovered new exit (range 11) 890 | -10/Materials | Entered Mines 891 | -10/Mines | Met a Derelict testing a Signal Generator 1026 | -10/Mines | Learned location of 1 exit from Materials 1080 | -10/Mines | Discovered new exit (range 6) 1178 | -10/Mines | Core integrity fell below 50% 1215 | -10/Mines | Lost 3 parts (1n2w) 1329 | -10/Mines | Entered Subcaves 1331 | -10/Subcaves | Identified exit to Materials 1398 | -10/Subcaves | Ambushed by swarm of Subdwellers 1479 | -10/Subcaves | Lost 3 allies 1644 | -10/Subcaves | Core integrity fell below 20% 1688 | -10/Subcaves | Released all parts (6) 1689 | -10/Subcaves | Destroyed by CP-NK5(R) with Subdweller Laser Last Messages --------------- 01405_ IZ-OHU(g): "Sorry we're late! Had another grouchy Sub to deal with. Who's the new fellow?" 01406_ HV Slug penetrates 7A-TBF(R). 01410_ Subatomizers dissect the Sub. Optics. 01411_ HX-GL3(h) destroyed. 01420_ IZ-OHU(g) destroyed. 01421_ Subatomizers dissect the Sub. Optics. 01421_ QW-EOX(R) destroyed. 01430_ 7A-TBF(R) suffers critical hit (Burn). 01543_ Acquired Beamcaster. 01545_ Acquired 10 matter. 01613_ 60-M8P(g) destroyed. 01671_ Acquired Riot Gun. 01676_ Aluminum Leg destroyed. 01688_ Released Beamcaster. 01688_ Released Ion Engine. 01688_ Released Sml. Storage Unit. 01688_ Released Carbon-fiber Leg. 01688_ Released Sensor Array. 01688_ Released Riot Gun. Map ----- +----------------------------------------------------+ | ??????????????????????# ""#?????????????????? | | ??????????????????????# "#?###??##?????????? | | ??????????????????????# "## ## "#?????????? | | ??????????????????????# ^ "##?????????? | | ??????????????????????# "#?????????? | | ??????????????????????## ""!^ # # "#????????? | | ???????????????????????###^####% #????? ????????? | | ?????????????????????????##### =" #??????????????? | | ??????????????????????????# ##%" #??????????????? | | ?????????????????????????## ! !###?????????????? | | ?????????????????????????# [ #### "#???? | | ???????????????????????### #???? | | ???????????????????????# "???? | | ???????????????????????# ### #??? | | ??????????????????????## RR### ???? | | ???????????????######## ! #???? | | ???????????????# % ### ????? | | ?????????????# =### ###??? ????? | | ????????????# ### ##???????????? | | ???????????? ## ####????????????? | | ???????????? #### ### ##??????????????? | | ????????????????????# ### #??????????????? | | ????????????????????### #??????????????? | | ??????????????????????##!=[## #?????????????? | | ?????????????????????###*[!## ###?????????????? | | ?????????????????????# @ #???????????????? | | ????????????????????# #???????????????? | | ????????????????????# #?????????????? | | ??????????????????? #????????????? | | ????????????????? ## #????????????? | | ??????????????? ##?# ???????????? | | ????????????? ## #???# ??????????? | | ????????????# ##??####????# ###??????????? | | ?????????????#########??????????????#????????????? | | ?????????????????????????????????????????????????? | | ?????????????????????????????????????????????????? | | ?????????????????????????????????????????????????? | | ?????????????????????????????????????????????????? | | ?????????????????????????????????????????????????? | | ?????????????????????????????????????????????????? | | ?????????????????????????????????????????????????? | | ?????????????????????????????????????????????????? | | ?????????????????????????????????????????????????? | | ?????????????????????????????????????????????????? | | ?????????????????????????????????????????????????? | | ?????????????????????????????????????????????????? | | ?????????????????????????????????????????????????? | | ?????????????????????????????????????????????????? | | | | | +----------------------------------------------------+ Best States ------------- Heat Dissipation 25 Energy Generation 10 Energy Capacity 250 Matter Stores 300 Matter Capacity 300 Sight Range 16 Robot Scan Range 14 Terrain Scan Density 10 Evasion (%) 55 Recoil Reduction 2 Item Schematics ----------------- None Robot Schematics ------------------ None Fabricated ------------ Nothing Repaired ---------- Nothing Alien Tech Used ----------------- None Achievements -------------- None Challenges ------------ None Game ------ Seed ElectronEncryptedLattice Manual? 0 Play Time 00:13:42 Cumulative 9.6 hours Start 2025.10.04 @ 20:42:06 End 2025.10.04 @ 20:55:28 Sessions 1 Manual Loads 0 Difficulty Rogue Special Mode None Game No. 28 Rogue 21 Adventurer 7 Explorer 0 Win Type - Total 0 Types 0/0/0/0/0/0/0/0/0/0 Lore% 2 Gallery% 13 Achievement% 12 Wizard Run 0 Options --------- Layout 1 ASCII 0 Keyboard 1 Movement Vi Keybinds 0 Fullscreen 1 Font 24/Smallcaps Map View 76x35 Zoom Use 0% Tactical HUD 1 Map Filters NONE Filters NONE Steam 1 RUN: 862db3c0-2a3b-4d9a-9128-3d05a7d26a54